bitfinex-derivatives/quotes_BTCF0:USTF0_20251206
["timestamp","ask_amount","ask_price","bid_price","bid_amount"]
[1765047694329,0.12068,89732.0,89731.0,0.08096]
[1765047694513,0.12068,89732.0,89731.0,1.30848]
[1765047696329,0.12168,89732.0,89731.0,1.30848]
[1765047696529,0.12168,89732.0,89731.0,1.31048]
[1765047701034,0.04863,89732.0,89731.0,1.31048]
[1765047701237,0.05408,89732.0,89731.0,1.31048]
[1765047703834,0.12696,89740.0,89739.0,0.09054]
[1765047704038,0.12696,89740.0,89739.0,0.99718]
[1765047704741,0.12696,89740.0,89739.0,1.35798]
[1765047704936,0.12796,89740.0,89739.0,1.35798]
[1765047707137,0.10406,89740.0,89739.0,1.35798]
[1765047708230,0.001,89740.0,89739.0,1.35798]
[1765047708434,0.05408,89740.0,89739.0,1.35798]
[1765047708634,0.10406,89740.0,89739.0,1.35798]
[1765047709843,0.13307,89740.0,89739.0,1.35798]
[1765047711142,0.3608,89760.0,89739.0,1.35798]
[1765047711143,0.13207,89760.0,89759.0,0.09054]
[1765047711442,0.13207,89760.0,89759.0,0.99718]
[1765047712147,0.10306,89760.0,89759.0,0.99718]
[1765047712742,0.10606,89760.0,89759.0,0.99718]
[1765047713446,0.10806,89760.0,89759.0,0.99718]
[1765047714246,0.10606,89760.0,89759.0,0.99718]
[1765047714443,0.10706,89760.0,89759.0,0.99718]
[1765047714643,0.05408,89760.0,89759.0,0.99718]
[1765047715549,0.001,89760.0,89759.0,0.99718]
[1765047718751,0.1030085,89766.0,89765.0,0.0915381]
[1765047718946,0.1030085,89766.0,89765.0,1.0282581]
[1765047719854,0.1040085,89766.0,89765.0,1.0282581]
[1765047721249,0.1060085,89766.0,89765.0,1.03956418]
[1765047721649,0.1060085,89766.0,89765.0,1.02842608]
[1765047722952,0.0548785,89766.0,89765.0,1.02842608]
[1765047723256,0.0032785,89766.0,89765.0,1.02842608]
[1765047725952,0.13076,89780.0,89779.0,0.0804]
[1765047726156,0.13076,89780.0,89779.0,1.00708]
[1765047726349,0.10273,89780.0,89779.0,1.00708]
[1765047726547,0.13076,89780.0,89779.0,1.00708]
[1765047727351,0.13576,89780.0,89779.0,1.00708]
[1765047728054,0.13776,89780.0,89779.0,1.00708]
[1765047732059,0.10973,89780.0,89779.0,1.00708]
[1765047732652,0.13771,89780.0,89779.0,1.00708]
[1765047732955,0.0586,89780.0,89779.0,1.00708]
[1765047733351,0.1049,89780.0,89779.0,1.00708]
[1765047733761,0.13288,89780.0,89779.0,1.00708]
[1765047735057,0.13288,89780.0,89779.0,0.41]
[1765047735254,0.13288,89780.0,89779.0,0.51664]
[1765047735452,0.13288,89780.0,89771.0,0.00016708]
[1765047735453,0.12028,89772.0,89771.0,0.00016708]
[1765047735764,0.1314173,89772.0,89771.0,0.87680708]
[1765047735961,0.12028,89772.0,89771.0,0.87680708]
[1765047736854,0.12228,89772.0,89771.0,0.87680708]
[1765047737054,0.12428,89772.0,89771.0,0.87680708]
[1765047737957,0.12428,89772.0,89771.0,0.90794708]
[1765047738356,0.12428,89772.0,89771.0,0.93908708]
[1765047749777,0.12428,89772.0,89771.0,0.00016708]
[1765047749978,0.12428,89772.0,89771.0,0.51668708]
[1765047752583,0.12428,89772.0,89771.0,0.54782708]
[1765047752794,0.12428,89772.0,89771.0,0.57896708]
[1765047753490,0.12428,89772.0,89771.0,0.06244708]
[1765047753886,0.48508,89772.0,89771.0,0.06244708]
[1765047754478,0.48508,89772.0,89771.0,0.00016708]
[1765047754789,0.48508,89772.0,89771.0,0.06244708]
[1765047757385,0.48508,89772.0,89771.0,0.00016708]
[1765047764900,0.0943679,89767.0,89766.0,0.07977071]
[1765047766203,0.0943679,89767.0,89765.0,0.01130608]
[1765047766204,0.08323,89766.0,89765.0,0.01130608]
[1765047766497,0.08323,89766.0,89760.0,0.51652]
[1765047766498,0.08323,89761.0,89760.0,0.51652]
[1765047766900,0.08323,89761.0,89760.0,0.52766639]
[1765047767402,0.08323,89761.0,89758.0,0.00016708]
[1765047767403,0.08323,89759.0,89758.0,0.00016708]
[1765047767611,0.11046,89752.0,89751.0,0.07977071]
[1765047767797,0.47126,89752.0,89751.0,0.07977071]
[1765047768002,0.47126,89752.0,89744.0,0.0111407]
[1765047768003,0.0943701,89749.0,89748.0,0.07977071]
[1765047768198,0.0943701,89749.0,89748.0,0.27977071]
[1765047769502,0.0943701,89749.0,89748.0,0.2]
[1765047769895,0.08323,89741.0,89740.0,0.00016708]
[1765047770096,0.0943711,89741.0,89740.0,0.00016708]
[1765047770497,0.0943711,89741.0,89740.0,0.01113283]
[1765047771101,0.0953711,89741.0,89740.0,0.01113283]
[1765047771601,0.0953711,89741.0,89740.0,0.01313283]
[1765047771801,0.0943711,89741.0,89740.0,0.01313283]
[1765047772104,0.0943711,89741.0,89740.0,0.09974283]
[1765047772105,0.0953711,89741.0,89740.0,0.09974283]
[1765047775504,0.0953711,89741.0,89740.0,0.05600283]
[1765047775809,0.0953711,89741.0,89740.0,0.01313283]
[1765047776307,0.0953711,89741.0,89740.0,0.002]
[1765047778511,0.1020021,89733.0,89732.0,0.00016708]
[1765047778710,0.4628021,89733.0,89732.0,0.00016708]
[1765047779510,0.4628021,89733.0,89732.0,0.09885098]
[1765047779711,0.4638021,89733.0,89732.0,0.09885098]
[1765047780013,0.4638021,89733.0,89732.0,0.10285098]
[1765047781008,0.4638021,89733.0,89732.0,0.01509098]
[1765047781415,0.4638021,89733.0,89732.0,0.00416708]
[1765047781612,0.7938021,89733.0,89732.0,0.00416708]
[1765047782415,0.1020029,89727.0,89726.0,0.00036739]
[1765047782915,0.1020029,89727.0,89726.0,0.09939074]
[1765047783615,0.1020029,89727.0,89726.0,0.10439074]
[1765047784218,0.1020029,89727.0,89726.0,0.10339074]
[1765047785812,0.1020029,89727.0,89726.0,0.10239074]
[1765047787123,0.81246,89733.0,89732.0,0.0989022]
[1765047787320,0.81246,89733.0,89732.0,0.4089022]
[1765047787718,0.40821,89733.0,89732.0,0.4089022]
[1765047787909,0.00016717,89735.0,89732.0,0.4089022]
[1765047788114,0.09102717,89735.0,89734.0,0.08776]
[1765047788313,0.09102717,89735.0,89734.0,0.47776]
[1765047789321,0.09202717,89735.0,89734.0,0.47776]
[1765047790022,0.09202717,89735.0,89734.0,0.49776]
[1765047790612,0.00116717,89735.0,89734.0,0.49776]
[1765047791421,0.00016717,89735.0,89734.0,0.47776]
[1765047791620,0.00116717,89735.0,89734.0,0.49776]
[1765047791822,0.38873,89750.0,89734.0,0.49776]
[1765047791823,0.45193,89750.0,89749.0,0.08738]
[1765047792025,0.45193,89750.0,89749.0,0.44738]
[1765047792026,0.09113,89750.0,89749.0,0.44738]
[1765047793226,0.0912971,89750.0,89749.0,0.44738]
[1765047793818,0.0475771,89750.0,89749.0,0.44738]
[1765047794023,0.001,89750.0,89749.0,0.44738]
[1765047794723,0.001,89750.0,89749.0,0.45038]
[1765047794924,0.44592717,89758.0,89757.0,0.08902]
[1765047795133,0.08512717,89758.0,89757.0,0.39902]
[1765047795326,0.08512717,89758.0,89757.0,0.16902]
[1765047795817,0.08512717,89758.0,89757.0,0.08902]
[1765047796020,0.08512717,89758.0,89757.0,0.44902]
[1765047796221,0.08612717,89758.0,89757.0,0.16902]
[1765047796420,0.08612717,89758.0,89757.0,0.09002]
[1765047798438,0.44692717,89758.0,89757.0,0.09002]
[1765047799941,0.08612717,89758.0,89757.0,0.09002]
[1765047800240,0.08612717,89758.0,89757.0,0.001]
[1765047800435,0.41612717,89758.0,89757.0,0.001]
[1765047801238,0.08612717,89758.0,89757.0,0.04593]
[1765047801441,0.16612717,89758.0,89757.0,0.09002]
[1765047801942,0.08612717,89758.0,89757.0,0.09002]
[1765047803350,0.08612717,89758.0,89757.0,0.52002]
[1765047804052,0.08612717,89758.0,89757.0,0.29002]
[1765047807945,0.04240717,89758.0,89757.0,0.29002]
[1765047808252,0.04240717,89758.0,89757.0,0.45002]
[1765047808552,0.08612717,89758.0,89757.0,0.45002]
[1765047809753,0.08612717,89758.0,89757.0,0.4611591]
[1765047811954,0.08612717,89758.0,89757.0,0.45002]
[1765047815257,0.04240717,89758.0,89757.0,0.45002]
[1765047815751,0.08612717,89758.0,89757.0,0.45002]
[1765047816545,0.00116717,89758.0,89757.0,0.45002]
[1765047817056,0.08612717,89758.0,89757.0,0.45002]
[1765047819060,0.04240717,89758.0,89757.0,0.45002]
[1765047820061,0.08612717,89758.0,89757.0,0.45002]
[1765047822062,0.08317717,89758.0,89757.0,0.45002]
[1765047822565,0.04240717,89758.0,89757.0,0.45002]
[1765047822953,0.08317717,89758.0,89757.0,0.45002]
[1765047828062,0.00116717,89758.0,89757.0,0.45002]
[1765047828465,0.04227717,89758.0,89757.0,0.45002]
[1765047829464,0.00116717,89758.0,89757.0,0.81082]
[1765047832375,0.08304717,89758.0,89757.0,0.81082]
[1765047832561,0.08304717,89758.0,89757.0,0.45002]
[1765047832962,0.08304717,89758.0,89757.0,0.9667]
[1765047833567,0.08304717,89758.0,89757.0,0.56261]
[1765047833765,0.08304717,89758.0,89757.0,0.59923]
[1765047838881,0.09418617,89758.0,89757.0,0.59923]
[1765047839267,0.09418617,89758.0,89757.0,0.51768]
[1765047839473,0.09418617,89758.0,89757.0,0.001]
[1765047842083,0.45123632,89758.0,89757.0,0.001]
[1765047843882,0.15123632,89758.0,89757.0,0.001]
[1765047844283,0.12418617,89758.0,89757.0,0.001]
[1765047845483,0.0841596,89753.0,89752.0,0.59085]
[1765047845978,0.4141596,89753.0,89752.0,0.59085]
[1765047846681,0.4141596,89753.0,89752.0,0.59185]
[1765047848782,0.4141596,89753.0,89752.0,0.51764]
[1765047849188,0.4141596,89753.0,89752.0,0.001]
[1765047849491,0.1053607,89744.0,89743.0,0.08015958]
[1765047849781,0.4661607,89744.0,89743.0,0.08015958]
[1765047850288,0.4661607,89744.0,89738.0,0.5279015]
[1765047850289,0.07302,89742.0,89738.0,0.51676]
[1765047850785,0.07302,89742.0,89741.0,0.07437717]
[1765047852683,0.07302,89742.0,89741.0,0.07537717]
[1765047858790,0.07302,89742.0,89741.0,0.07437717]
[1765047859093,0.07302,89742.0,89741.0,0.07537717]
[1765047866697,0.43382,89742.0,89741.0,0.07537717]
[1765047870393,0.43382,89742.0,89741.0,0.00116717]
[1765047870598,0.76382,89742.0,89741.0,0.00116717]
[1765047872699,0.76382,89742.0,89741.0,0.07155717]
[1765047873494,0.43382,89742.0,89741.0,0.07155717]
[1765047875901,0.43382,89742.0,89741.0,0.44155717]
[1765047876205,0.3608,89742.0,89741.0,0.52164222]
[1765047876794,0.1065598,89752.0,89751.0,0.07039]
[1765047877898,0.1075598,89752.0,89751.0,0.07039]
[1765047878304,0.1095598,89752.0,89751.0,0.07039]
[1765047879296,0.1075598,89752.0,89751.0,0.07039]
[1765047879495,0.1075598,89752.0,89751.0,0.07139]
[1765047879997,0.1065598,89752.0,89751.0,0.07139]
[1765047880494,0.07226,89752.0,89751.0,0.50139]
[1765047880698,0.0342988,89760.0,89752.0,0.0815298]
[1765047880897,0.0111388,89760.0,89752.0,0.5034098]
[1765047881602,0.0111388,89760.0,89752.0,0.49227]
[1765047881800,0.0111388,89760.0,89752.0,0.49327]
[1765047882202,0.39255,89753.0,89752.0,0.49327]
[1765047883199,0.39255,89753.0,89752.0,0.57336549]
[1765047883406,0.03175,89753.0,89752.0,0.57336549]
[1765047885099,0.03175,89753.0,89752.0,0.49227]
[1765047885305,0.03175,89753.0,89752.0,0.49327]
[1765047885499,0.06382,89753.0,89752.0,0.49327]
[1765047885699,0.06382,89753.0,89752.0,0.49227]
[1765047885998,0.06382,89753.0,89752.0,0.49327]
[1765047886304,0.06382,89753.0,89752.0,0.47139]
[1765047887506,0.03175,89753.0,89752.0,0.47139]
[1765047887702,0.0749592,89757.0,89756.0,0.06599]
[1765047888206,0.0749592,89757.0,89756.0,0.49599]
[1765047888708,0.06382,89757.0,89756.0,0.49599]
[1765047890509,0.06482,89757.0,89756.0,0.49599]
[1765047894903,0.06482,89757.0,89756.0,0.11599]
[1765047895110,0.06482,89757.0,89756.0,0.0332]
[1765047895513,0.07963,89752.0,89751.0,0.57913]
[1765047895713,0.07963,89752.0,89751.0,0.92913]
[1765047897005,0.02964,89752.0,89751.0,0.93113]
[1765047897206,0.06079717,89758.0,89757.0,0.06245]
[1765047898414,0.06179717,89758.0,89757.0,0.06245]
[1765047902522,0.42259717,89758.0,89757.0,0.06245]
[1765047903515,0.0907698,89752.0,89751.0,0.65922549]
[1765047903818,0.0907698,89752.0,89751.0,0.54836]
[1765047904019,0.0907698,89752.0,89751.0,0.98905]
[1765047904421,0.0907698,89752.0,89751.0,1.06914549]
[1765047904623,0.0907698,89752.0,89751.0,0.75114549]
[1765047905508,0.0907698,89752.0,89751.0,0.67105]
[1765047905715,0.0907698,89752.0,89751.0,0.7511686]
[1765047905915,0.0907698,89752.0,89751.0,0.67105]
[1765047906816,0.07963,89752.0,89751.0,0.99105]
[1765047908720,0.0907698,89752.0,89751.0,0.68105]
[1765047909818,0.0907698,89752.0,89751.0,0.06445]
[1765047910018,0.0907698,89752.0,89751.0,0.58105]
[1765047911326,0.06063,89752.0,89751.0,0.98105]
[1765047912227,0.06063,89752.0,89751.0,0.98005]
[1765047912729,0.06063,89752.0,89751.0,0.98105]
[1765047918129,0.41950717,89758.0,89757.0,0.05817]
[1765047919230,0.42050717,89758.0,89757.0,0.05817]
[1765047927838,0.42050717,89758.0,89757.0,0.02896]
[1765047928042,0.05854,89756.0,89755.0,0.1091659]
[1765047928341,0.05854,89756.0,89755.0,0.0802059]
[1765047929245,0.41934,89756.0,89755.0,0.0802059]
[1765047929442,0.41934,89756.0,89755.0,0.0812059]
[1765047930152,0.41934,89756.0,89755.0,0.1101659]
[1765047930954,0.41934,89756.0,89755.0,0.1091659]
[1765047931654,0.42034,89756.0,89755.0,0.1091659]
[1765047932451,0.42034,89756.0,89755.0,0.1383759]
[1765047934752,0.42034,89756.0,89755.0,0.0802059]
[1765047934948,0.42034,89756.0,89755.0,0.05817]
[1765047935360,0.42034,89756.0,89755.0,0.1383759]
[1765047936354,0.05954,89756.0,89755.0,0.1383759]
[1765047936562,0.42034,89756.0,89755.0,0.1383759]
[1765047936752,0.42034,89756.0,89755.0,0.05817]
[1765047937658,0.41934,89756.0,89755.0,0.05817]
[1765047937857,0.42034,89756.0,89755.0,0.05817]
[1765047940870,0.05954,89756.0,89755.0,0.05817]
[1765047941058,0.42034,89756.0,89755.0,0.05817]
[1765047942266,0.41934,89756.0,89755.0,0.05917]
[1765047946870,0.41934,89756.0,89755.0,0.1393759]
[1765047947070,0.05854,89756.0,89755.0,0.1393759]
[1765047947272,0.05854,89756.0,89755.0,0.05917]
[1765047947871,0.05854,89756.0,89755.0,0.13938881]
[1765047948472,0.05854,89756.0,89755.0,0.05917]
[1765047949272,0.05854,89756.0,89755.0,0.47917]
[1765047949967,0.05854,89756.0,89755.0,0.55938741]
[1765047950164,0.05854,89756.0,89755.0,0.47917]
[1765047951262,0.05854,89756.0,89755.0,0.47817]
[1765047951458,0.05854,89756.0,89755.0,0.47917]
[1765047958372,0.02871,89756.0,89755.0,0.47917]
[1765047958574,0.00016717,89758.0,89757.0,0.057]
[1765047958774,0.00016717,89758.0,89757.0,0.54720095]
[1765047959079,0.00016717,89758.0,89757.0,0.467]
[1765047960575,0.00116717,89758.0,89757.0,0.467]
[1765047963080,0.00116717,89758.0,89757.0,0.98356]
[1765047963978,0.02860717,89758.0,89757.0,0.98356]
[1765047964177,0.05705717,89758.0,89757.0,0.98356]
[1765047965580,0.00116717,89758.0,89757.0,0.98356]
[1765047965778,0.00116717,89758.0,89757.0,0.99575]
[1765047967574,0.00116717,89758.0,89757.0,1.35655]
[1765047969790,0.00116717,89758.0,89757.0,1.34436]
[1765047969791,0.02860717,89758.0,89757.0,1.34436]
[1765047970090,0.05705717,89758.0,89757.0,1.34436]
[1765047972789,0.00116717,89758.0,89757.0,1.35504]
[1765047973291,0.00116717,89758.0,89757.0,1.355]
[1765047975187,0.05694717,89758.0,89757.0,1.34432]
[1765047975385,0.02844717,89758.0,89757.0,1.34432]
[1765047976892,0.02844717,89758.0,89757.0,1.42448464]
[1765047977489,0.02844717,89758.0,89757.0,0.90796464]
[1765047977702,0.02844717,89758.0,89757.0,1.42448464]
[1765047979897,0.02844717,89758.0,89757.0,1.34432]
[1765047980092,0.00116717,89758.0,89757.0,1.4244847]
[1765047980293,0.00116717,89758.0,89757.0,1.4351647]
[1765047980494,0.00116717,89758.0,89757.0,1.355]
[1765047986803,0.00116717,89758.0,89757.0,1.45507462]
[1765047989200,0.00116717,89758.0,89757.0,1.09427462]
[1765047989503,0.00116717,89758.0,89757.0,1.45507462]
[1765047992305,0.00116717,89758.0,89757.0,1.355]
[1765047995110,0.00116717,89758.0,89757.0,1.45507462]
[1765047995311,0.00116717,89758.0,89757.0,1.355]
[1765047997613,0.0733,89772.0,89771.0,0.05728]
[1765047997814,0.0733,89772.0,89771.0,0.57376]
[1765047998910,0.0743,89772.0,89771.0,0.57376]
[1765047999814,0.0854373,89772.0,89771.0,0.57376]
[1765048000014,0.0884373,89772.0,89771.0,0.57376]
[1765048000309,0.4184373,89772.0,89771.0,0.57376]
[1765048000514,0.4184373,89772.0,89771.0,0.51648]
[1765048000909,0.4184373,89772.0,89771.0,0.54425]
[1765048001110,0.4184373,89772.0,89771.0,0.57376]
[1765048009031,0.4184373,89772.0,89771.0,0.5848974]
[1765048011634,0.7792373,89772.0,89771.0,0.5848974]
[1765048012235,0.4184373,89772.0,89771.0,0.5848974]
[1765048012433,0.7792373,89772.0,89771.0,0.5848974]
[1765048012639,0.7792373,89772.0,89771.0,0.57376]
[1765048019434,0.4184373,89772.0,89771.0,0.57376]
[1765048019636,0.7792373,89772.0,89771.0,0.57376]
[1765048022134,0.4317173,89772.0,89771.0,0.5848974]
[1765048022539,0.4482673,89772.0,89771.0,0.5848974]
[1765048023026,0.43713,89772.0,89771.0,0.6650059]
[1765048026634,0.42058,89772.0,89771.0,0.6650059]
[1765048026839,0.42058,89772.0,89771.0,0.5848974]
[1765048027839,0.43713,89772.0,89771.0,0.57376]
[1765048031250,0.07633,89772.0,89771.0,0.57376]
[1765048035445,0.0874673,89772.0,89771.0,0.57376]
[1765048036750,0.4174673,89772.0,89771.0,0.51648]
[1765048037347,0.4174673,89772.0,89771.0,0.54431]
[1765048037551,0.4174673,89772.0,89771.0,0.57331]
[1765048041550,0.4174673,89772.0,89771.0,0.51648]
[1765048044449,0.4174673,89772.0,89771.0,0.54431]
[1765048044654,0.4174673,89772.0,89771.0,0.57331]
[1765048045847,0.1774673,89772.0,89771.0,0.57331]
[1765048049553,0.5382673,89772.0,89771.0,0.57331]
[1765048051355,0.1774673,89772.0,89771.0,0.57331]
[1765048051744,0.0709173,89772.0,89771.0,0.57331]
[1765048053661,0.05978,89772.0,89771.0,0.57331]
[1765048060175,0.0581,89771.0,89761.0,0.10013563]
[1765048060467,0.00099999,89750.0,89657.0,0.56031755]
[1765048060657,0.06008452,89712.0,89621.0,0.32087333]
[1765048060862,0.06008452,89686.0,89621.0,0.32087333]
[1765048061165,0.0154,89640.0,89590.0,0.01755]
[1765048061365,0.04910881,89639.0,89590.0,0.01755]
[1765048061568,0.37231962,89616.0,89590.0,0.01755]
[1765048061769,0.02625998,89615.0,89590.0,0.01755]
[1765048062070,0.02625998,89615.0,89602.0,0.00016739]
[1765048062367,0.0111578,89607.0,89602.0,0.00016739]
[1765048062560,0.011158,89605.0,89602.0,9e-08]
[1765048062758,0.02614721,89604.0,89570.0,0.29983]
[1765048062963,0.0111617,89576.0,89571.0,0.55812]
[1765048063160,0.23371238,89590.0,89571.0,0.55812]
[1765048063161,0.02627008,89575.0,89571.0,0.55812]
[1765048063361,0.02614721,89574.0,89571.0,0.55812]
[1765048063571,0.02614721,89573.0,89550.0,0.01755]
[1765048063769,0.0043,89551.0,89550.0,0.58555]
[1765048064072,0.0111631,89565.0,89551.0,0.25745126]
[1765048064271,0.0043,89563.0,89562.0,0.58555]
[1765048064569,0.04450113,89563.0,89562.0,0.58555]
[1765048064768,0.10330682,89563.0,89562.0,0.58555]
[1765048065073,0.04450113,89563.0,89562.0,0.29942]
[1765048065268,0.0043,89553.0,89552.0,0.53932126]
[1765048065475,0.0043,89553.0,89552.0,0.28187]
[1765048065768,0.0043,89551.0,89550.0,0.30842]
[1765048065968,0.04459243,89551.0,89550.0,0.30842]
[1765048066171,0.04459243,89551.0,89550.0,0.58555]
[1765048067256,0.0043,89543.0,89540.0,0.01755]
[1765048067465,0.00215,89543.0,89542.0,0.5681675]
[1765048067672,0.00215,89543.0,89542.0,0.82561876]
[1765048067875,0.0012588,89551.0,89550.0,0.58555]
[1765048068066,0.05693645,89551.0,89550.0,0.58555]
[1765048068263,0.0154656,89544.0,89543.0,0.82545126]
[1765048068464,0.0043,89544.0,89543.0,0.82545126]
[1765048068768,0.00215,89544.0,89543.0,0.82545126]
[1765048068964,0.0043,89544.0,89543.0,0.82545126]
[1765048069163,0.0043,89544.0,89543.0,0.53932126]
[1765048069362,0.0043,89487.0,89480.0,0.01755]
[1765048069563,0.0111701,89509.0,89486.0,0.56827937]
[1765048069759,0.0133201,89509.0,89508.0,0.568]
[1765048069969,0.0111701,89509.0,89508.0,0.568]
[1765048070267,0.0111722,89491.0,89490.0,0.58555]
[1765048070468,0.00013327,89491.0,89490.0,0.58555]
[1765048070870,0.0043,89487.0,89486.0,0.00027937]
[1765048071072,0.0043,89472.0,89471.0,0.28187]
[1765048071372,0.72168686,89472.0,89471.0,0.568]
[1765048071572,0.72168686,89472.0,89471.0,0.56105]
[1765048071763,0.72168686,89472.0,89471.0,0.69114]
[1765048072867,1.80650686,89472.0,89471.0,0.35385]
[1765048073062,1.39650686,89472.0,89471.0,0.35385]
[1765048073267,0.34891,89464.0,89463.0,0.69125266]
[1765048073468,0.70971,89464.0,89463.0,0.69125266]
[1765048073670,0.3608,89464.0,89463.0,0.69125266]
[1765048074169,0.6859972,89451.0,89436.0,0.21016]
[1765048074375,0.7311,89464.0,89463.0,0.69114]
[1765048074376,0.0203,89464.0,89463.0,0.69114]
[1765048074579,0.7216,89464.0,89463.0,0.69114]
[1765048074765,0.7216,89464.0,89448.0,0.21016]
[1765048074766,1.1316,89464.0,89448.0,0.21016]
[1765048074971,0.0111777,89448.0,89436.0,0.21016]
[1765048075165,0.7216,89449.0,89436.0,0.21016]
[1765048075166,1.03562,89437.0,89436.0,0.35385]
[1765048075368,0.0111797,89431.0,89420.0,0.01184056]
[1765048075679,0.011179,89438.0,89437.0,0.69114]
[1765048075878,0.732779,89438.0,89437.0,0.33034]
[1765048076173,0.6859996,89432.0,89424.0,0.21016]
[1765048076364,0.3608,89425.0,89424.0,0.35385]
[1765048076565,0.3608,89425.0,89412.0,0.21016]
[1765048076566,0.3608,89425.0,89420.0,0.71614]
[1765048076875,0.3608,89425.0,89424.0,0.69114]
[1765048077077,0.7216,89425.0,89424.0,0.69114]
[1765048077266,0.0111807,89424.0,89412.0,0.21016]
[1765048077465,0.3608,89413.0,89412.0,0.9013]
[1765048077666,1.03562,89413.0,89412.0,0.69114]
[1765048077876,0.0111821,89412.0,89404.0,0.52484]
[1765048078071,0.70971,89407.0,89406.0,0.69141962]
[1765048078570,0.3608,89407.0,89406.0,0.69141962]
[1765048078771,1.03562,89407.0,89406.0,0.00027962]
[1765048079278,1.03562,89407.0,89406.0,0.35412962]
[1765048080371,1.03762,89407.0,89406.0,0.025]
[1765048080571,0.6860044,89394.0,89393.0,8e-08]
[1765048080773,1.4360044,89394.0,89393.0,8e-08]
[1765048080980,1.0360044,89394.0,89393.0,8e-08]
[1765048081187,0.15274,89400.0,89393.0,8e-08]
[1765048081188,0.00016772,89402.0,89401.0,0.9013]
[1765048081686,0.72189661,89402.0,89401.0,0.9013]
[1765048082273,0.34891,89394.0,89393.0,0.35685008]
[1765048082486,0.70971,89394.0,89393.0,0.69414008]
[1765048082880,1.03562,89394.0,89393.0,0.35685008]
[1765048083082,0.0111858,89383.0,89382.0,0.69114]
[1765048083385,0.0111866,89376.0,89375.0,0.35385]
[1765048083583,0.3719866,89376.0,89375.0,0.69114]
[1765048083782,0.3608,89376.0,89375.0,0.9013]
[1765048083975,0.36089275,89376.0,89375.0,1.2513]
[1765048084171,0.3608,89383.0,89382.0,0.69114]
[1765048084377,0.32997836,89383.0,89382.0,1.6505]
[1765048084678,0.3608,89399.0,89398.0,0.69114]
[1765048084882,0.3608,89399.0,89398.0,1.07114]
[1765048085082,0.3608,89414.0,89401.0,0.7618535]
[1765048085387,0.0002541,89402.0,89401.0,1.58711]
[1765048085582,0.0002541,89402.0,89401.0,1.98711]
[1765048086177,0.3601572,89414.0,89413.0,0.69114]
[1765048087078,0.36024318,89414.0,89413.0,0.69114]
[1765048087284,0.70915318,89414.0,89413.0,0.69114]
[1765048087481,0.36024318,89414.0,89413.0,0.69114]
[1765048087987,0.36024318,89414.0,89413.0,0.69214]
[1765048089586,0.36024318,89414.0,89413.0,0.69114]
[1765048090188,0.40051334,89414.0,89413.0,0.69114]
[1765048091471,0.40051334,89414.0,89413.0,1.2173]
[1765048092479,0.04035614,89414.0,89413.0,1.2173]
[1765048092884,0.00016782,89422.0,89413.0,1.2173]
[1765048092885,0.00016782,89422.0,89421.0,0.69128]
[1765048093082,0.00016782,89422.0,89421.0,1.05208]
[1765048094088,0.00129016,89422.0,89421.0,1.05208]
[1765048094990,0.00129016,89422.0,89421.0,1.21208]
[1765048095393,0.00129016,89422.0,89421.0,1.93812]
[1765048095893,0.00129016,89422.0,89421.0,1.93808]
[1765048096583,0.00129016,89422.0,89421.0,1.80808]
[1765048097589,0.714982,89413.0,89405.0,0.00016782]
[1765048097792,0.7149826,89409.0,89408.0,0.69128]
[1765048098186,0.7038,89416.0,89415.0,0.33498]
[1765048098384,0.7149816,89416.0,89415.0,0.52596]
[1765048098794,0.7149816,89416.0,89415.0,0.86094]
[1765048098992,0.7149816,89416.0,89415.0,1.21724]
[1765048100785,0.7149816,89416.0,89415.0,0.86094]
[1765048101594,0.7149816,89416.0,89415.0,0.33498]
[1765048101789,0.7149816,89416.0,89415.0,0.86078]
[1765048101989,0.7038,89416.0,89415.0,1.21708]
[1765048103202,0.001,89416.0,89415.0,1.21708]
[1765048103588,0.36093,89416.0,89415.0,1.21708]
[1765048103783,0.001,89416.0,89415.0,1.21708]
[1765048104797,0.001,89416.0,89415.0,2.04708]
[1765048105092,0.00029016,89422.0,89421.0,0.69128]
[1765048105287,0.03202625,89422.0,89421.0,1.42208]
[1765048105998,0.03202625,89422.0,89421.0,1.433261]
[1765048106395,0.0316092,89422.0,89421.0,1.433261]
[1765048106696,0.3608,89443.0,89437.0,0.702459]
[1765048106697,0.05944171,89438.0,89437.0,0.702459]
[1765048106901,0.42024171,89443.0,89442.0,0.69128]
[1765048107197,0.3608,89443.0,89442.0,0.69128]
[1765048107692,0.3609055,89443.0,89442.0,0.69128]
[1765048108400,0.0001055,89443.0,89442.0,0.69128]
[1765048109494,0.0011055,89443.0,89442.0,0.69128]
[1765048110202,0.7049055,89443.0,89442.0,0.69128]
[1765048110401,0.7049055,89443.0,89434.0,0.69144771]
[1765048110402,0.7149792,89435.0,89434.0,0.69144771]
[1765048110694,0.7038,89435.0,89434.0,1.21684771]
[1765048111288,0.3711088,89439.0,89438.0,0.69128]
[1765048111495,0.0001055,89443.0,89442.0,0.69128]
[1765048111698,0.0001055,89443.0,89442.0,1.2166]
[1765048112301,0.3600355,89443.0,89442.0,1.2166]
[1765048113198,0.3610355,89443.0,89442.0,1.2166]
[1765048113503,0.7049055,89443.0,89442.0,1.2166]
[1765048113703,0.7160837,89443.0,89442.0,1.2166]
[1765048114601,0.0011055,89443.0,89442.0,1.2166]
[1765048117597,0.0011055,89443.0,89442.0,1.9866]
[1765048118108,0.0002795,89446.0,89445.0,0.69128]
[1765048119097,0.00038385,89446.0,89445.0,1.12128]
[1765048119502,0.30059286,89462.0,89461.0,0.702456]
[1765048119698,1.0646,89474.0,89473.0,0.69128]
[1765048119893,1.0646,89474.0,89473.0,1.24997349]
[1765048120697,1.0646,89474.0,89473.0,1.33007451]
[1765048120900,1.0646,89474.0,89473.0,1.24997349]
[1765048121198,1.1246,89474.0,89473.0,1.24997349]
[1765048121406,1.1246,89474.0,89473.0,1.33005511]
[1765048122403,1.0656,89474.0,89473.0,1.33005511]
[1765048122593,1.0656,89474.0,89473.0,0.97375511]
[1765048122799,1.0656,89474.0,89473.0,0.89367349]
[1765048124117,1.0656,89474.0,89473.0,1.23509349]
[1765048124819,0.00016771,89482.0,89473.0,1.63509349]